Cogmind - Beta 13 *** ADVENTURER MODE // 2024.03.26 @ 22:57:48 Player: Lucyna Result: Destroyed self with Rocket Launcher Performance ------------- Evolutions (0) 0 Regions Visited (2) 400 Robots Destroyed (15) 75 Value Destroyed (197) 197 Prototype IDs (0) 0 Alien Tech Used (0) 0 Bonus (0) 0 TOTAL SCORE: 672 Bonus ------- None Cogmind --------- Core Integrity 0/250 Matter 224/300 Energy 100/100 System Corruption 0% Temperature Cool (0) Movement Core (100) Ox1 Location -10/Mines Parts ------- > --- POWER (1) -------- (None) > --- PROPULSION (2) --- Aluminum Leg > --- UTILITY (2) ------ (None) > --- WEAPON (2) ------- Rocket Launcher > --- INVENTORY (5) ---- Wheel Medium Laser Grenade Launcher Mining Laser Peak State ------------ > --- POWER ------------ Ion Engine > --- PROPULSION ------- Aluminum Leg > --- UTILITY ---------- Terrain Scanner Weapon Shielding > --- WEAPON ----------- Assault Rifle Light Assault Rifle > --- INVENTORY -------- Aluminum Leg Wheel Medium Laser Mining Laser [Rating: 6] Favorites ----------- Power Ion Engine Engine Ion Engine Propulsion Aluminum Leg Leg Aluminum Leg Wheel Wheel Flight Unit Flight Unit Utility Weapon Shielding Device Terrain Scanner Protection Weapon Shielding Weapon Assault Rifle Energy Gun Medium Laser Energy Cannon Beam Cannon Ballistic Gun Assault Rifle Launcher Grenade Launcher Special Weapon Mining Laser Build | -11 -10 -10 ------- Run | Yrd Mat Min Slots Evolved . | . . . Power . | . . . Propulsion . | . . . Utility . | . . . Weapon . | . . . Parts Attached 19 | 2 16 1 Power 4 | 1 3 . Engine 4 | 1 3 . Core . | . . . Reactor . | . . . Propulsion 4 | 1 3 . Treads . | . . . Leg 2 | . 2 . Wheel 1 | 1 . . Hover . | . . . Flight 1 | . 1 . Utility 2 | . 2 . Device 1 | . 1 . Storage . | . . . Processor . | . . . Hackware . | . . . Protection 1 | . 1 . Artifact . | . . . Weapon 9 | . 8 1 Energy Gun 1 | . 1 . Energy Cannon 2 | . 2 . Ballistic Gun 3 | . 3 . Ballistic Cannon . | . . . Launcher 2 | . 1 1 Special Weapon 1 | . 1 . Impact Weapon . | . . . Slashing Weapon . | . . . Piercing Weapon . | . . . Special Melee Weapon . | . . . Unidentified Prototypes . | . . . Parts Lost 10 | . 6 4 Power 2 | . 1 1 Propulsion 3 | . 3 . Utility 2 | . 1 1 Weapon 3 | . 1 2 Highest Loss Streak 4 | . 3 4 To Critical Strikes 1 | . 1 . Average Slot Usage (%) 64 | . 62 69 Engine 13 | . 13 14 Leg 13 | . 13 14 Wheel 3 | . 4 . Protection 7 | . 5 13 Energy Cannon 2 | . 3 . Ballistic Gun 17 | . 14 27 Launcher 2 | . 3 . Naked Turns . | . . . Heaviest Build 11 | 5 11 7 Greatest Support 10 | 10 10 3 Greatest Overweight (x) 2 | 1 2 2 Average Overweight (x) . | . . 2 Largest Inventory Capacity 5 | 5 5 5 Average Capacity 5 | 5 5 5 Most Carried 5 | 5 5 5 Average Carried 4 | 3 4 4 Final Capacity 5 | 5 5 5 Final Carried 5 | 5 5 4 Class Distribution -------------------- 100% | Mutant Dominant Class ---------------- Mutant | -10/Materials Mutant | -10/Mines Resources | -11 -10 -10 ----------- Run | Yrd Mat Min Matter Collected 471 | 220 251 . Remotely . | . . . Salvage Created 277 | . 277 . Parts 26 | . 26 . Haulers Intercepted . | . . . Recyclers Shooed . | . . . Parts Field Recycled . | . . . Retrieved Matter . | . . . Parts Self-Destructed . | . . . Prevented . | . . . Kills | -11 -10 -10 ------- Run | Yrd Mat Min Combat Hostiles Destroyed 10 | . 10 . Guns 5 | . 5 . Cannons 2 | . 2 . AOE 3 | . 3 . Classes Destroyed 6 | . 6 . Worker 2 | . 2 . Builder 1 | . 1 . Recycler 1 | . 1 . Watcher 1 | . 1 . Swarmer 8 | . 8 . Grunt 2 | . 2 . Best Kill Streak 4 | . 4 . Combat Bots Only 3 | . 3 . Max Kills in Single Turn 2 | . 2 . Gunslinging . | . . . Exploded 2 | . 2 . Melee . | . . . Uniques/NPCs Destroyed . | . . . Combat | -11 -10 -10 -------- Run | Yrd Mat Min Hostile Shots Fired 144 | . 132 12 Missed 43 | . 40 3 Damage Taken 973 | . 671 302 Core 260 | . 179 81 Absorbed by Shields . | . . . Redirected to Shielding 50 | . 30 20 Ignored by Resistances 303 | . 222 81 Core Remaining (%) 100 | 100 . . Volleys Fired 65 | . 60 5 Largest 2 | . 2 2 Hottest 90 | . 90 53 Shots Fired 104 | . 98 6 Gun 76 | . 72 4 Cannon 22 | . 22 . Launcher 6 | . 4 2 Special . | . . . Kinetic 76 | . 72 4 Thermal 22 | . 22 . Explosive 6 | . 4 2 Electromagnetic . | . . . Robot Hit Streak 7 | . 7 3 Robot Miss Streak 3 | . 3 1 Penetration Max . | . . . Secondary Targets 1 | . 1 . Max Gunslinging Chain 1 | . 1 . Shots Hit Robots 41 | . 38 3 Core Hits 22 | . 21 1 Critical Kills 1 | . 1 . Critical Parts Destroyed . | . . . Critical Strikes 1 | . 1 . Destroy 1 | . 1 . Melee Attacks . | . . . Impact . | . . . Slashing . | . . . Piercing . | . . . Sneak Attacks . | . . . Combat Hostiles . | . . . Follow-up Attacks . | . . . Damage Inflicted 808 | . 780 28 Guns 368 | . 362 6 Cannons 210 | . 210 . Explosions 223 | . 201 22 Melee . | . . . Ramming 7 | . 7 . Kinetic 368 | . 362 6 Thermal 210 | . 210 . Explosive 223 | . 201 22 Electromagnetic . | . . . Impact . | . . . Slashing . | . . . Piercing . | . . . Highest Corruption . | . . . Average Corruption . | . . . Corruption Purged . | . . . Corruption Blocked . | . . . Overload Shots . | . . . Overflow Damage 11 | . . 11 Projectiles . | . . . Explosions 11 | . . 11 Melee . | . . . Knockbacks . | . . . Impact . | . . . Kinetic . | . . . Secondary . | . . . Self-Inflicted Damage 124 | . 84 40 Shots 6 | . 4 2 Rammed . | . . . Targets Rammed 2 | . 2 . Kicked 2 | . 2 . Crushed . | . . . Highest Temperature 229 | . 229 2 Average Temperature 65 | . 67 1 Received Heat Transfer 132 | . 132 . Effects 1 | . 1 . Energy Bleed 1 | . 1 . Siege Activations . | . . . Robots Corrupted . | . . . Combat Hostiles . | . . . Parts Fried . | . . . Impact Corruptions . | . . . Robots Melted . | . . . Combat Hostiles . | . . . Parts Melted . | . . . Heat Transferred 444 | . 444 . Parts Sabotaged . | . . . Parts Stolen . | . . . Parts Stripped . | . . . Power Chain Reactions . | . . . Alert | -11 -10 -10 ------- Run | Yrd Mat Min Peak Influence 266 | . 266 55 Initial 55 | . . 55 Average 108 | . 132 53 Maximum Alert Level 1 | . 1 . Low Security (%) 82 | 100 75 100 Level 1 17 | . 24 . Level 2 . | . . . Level 3 . | . . . Level 4 . | . . . Level 5 . | . . . High Security . | . . . Max Security . | . . . Squads Dispatched . | . . . Investigation . | . . . Extermination . | . . . Reinforcement . | . . . Assault . | . . . Garrison . | . . . Intercept . | . . . Searches Triggered . | . . . Construction Impeded . | . . . Haulers Reinforced . | . . . Active Scanning Responses . | . . . Cargo Convoy Interrupts . | . . . Stealth | -11 -10 -10 --------- Run | Yrd Mat Min Distress Signals 2 | . 2 . Communications Jammed . | . . . Distress Signals . | . . . Times Spotted 19 | . 17 2 Peak Tracking Total 4 | . 4 2 Tactical Retreats . | . . . Traps | -11 -10 -10 ------- Run | Yrd Mat Min Traps Triggered . | . . . Indirectly . | . . . Trap Hack Attempts . | . . . Triggered . | . . . Disarmed . | . . . Reprogrammed . | . . . Reused . | . . . Traps Extracted . | . . . Installed . | . . . Triggered . | . . . Machines | -11 -10 -10 ---------- Run | Yrd Mat Min Machines Disabled 2 | . 2 . Max in Single Turn 1 | . 1 . Machines Repaired . | . . . Machines Dismantled . | . . . Machines Sabotaged . | . . . Overloaded Fab Kills . | . . . Hacking | -11 -10 -10 --------- Run | Yrd Mat Min Machines Accessed 3 | . 3 . Terminals 3 | . 3 . Fabricators . | . . . Repair Stations . | . . . Recycling Units . | . . . Scanalyzers . | . . . Garrison Access . | . . . Total Hacks 12 | . 12 . Successful 7 | . 7 . Failed 5 | . 5 . Catastrophic 1 | . 1 . Database Lockouts . | . . . Manual . | . . . Terminals 12 | . 12 . Fabricators . | . . . Repair Stations . | . . . Recycling Units . | . . . Scanalyzers . | . . . Garrison Access . | . . . Terminal Hacks 7 | . 7 . Record 2 | . 2 . Robot Analysis 2 | . 2 . Dispatch Records 1 | . 1 . Investigation Status 1 | . 1 . Registered Components 1 | . 1 . Fabricator Hacks . | . . . Repair Station Hacks . | . . . Recycling Unit Hacks . | . . . Scanalyzer . | . . . Garrison Access Hacks . | . . . Unauthorized Hacks . | . . . Terminals . | . . . Fabricators . | . . . Repair Stations . | . . . Recycling Units . | . . . Scanalyzers . | . . . Garrison Access . | . . . Data Cores Recovered . | . . . Used . | . . . Hacking Detections 3 | . 3 . Full Trace Events 2 | . 2 . Feedback Events . | . . . Feedback Blocked . | . . . Robot Schematics Acquired . | . . . Robots Built . | . . . Authchips . | . . . Time . | . . . Total Robot Build Rating . | . . . Part Schematics Acquired . | . . . Parts Built . | . . . Authchips . | . . . Time . | . . . Total Part Build Rating . | . . . Parts Repaired . | . . . Time . | . . . Parts Recycled . | . . . Recycled Matter . | . . . Retrieved Matter . | . . . Retrieved Components . | . . . Parts Scanalyzed . | . . . Part Schematics Acquired . | . . . Parts Damaged . | . . . Bothacking | -11 -10 -10 ------------ Run | Yrd Mat Min Used RIF Installer . | . . . Robots Hacked . | . . . Non-combat . | . . . Combat . | . . . Robot Hacks Applied . | . . . Relay Couplers Released . | . . . Fabnet Peak Effective % . | . . . Robots Rewired . | . . . Allies Hacked . | . . . Hacks Repelled . | . . . Allies | -11 -10 -10 -------- Run | Yrd Mat Min Total Allies . | . . . Largest Group . | . . . Highest-Rated Group . | . . . Highest-Rated Ally . | . . . Total Orders . | . . . Ally Attacks . | . . . Total Damage . | . . . Kills . | . . . Allies Corrupted . | . . . Allies Melted . | . . . Intel | -11 -10 -10 ------- Run | Yrd Mat Min Robot Analysis Total 2 | . 2 . Derelict Logs Recovered . | . . . Drone Launches . | . . . Drone Recoveries . | . . . Exploration | -11 -10 -10 ------------- Run | Yrd Mat Min Turns Passed 904 | 45 661 198 Spaces Moved 556 | 49 384 123 Core 183 | 21 39 123 Treads . | . . . Legs 331 | . 331 . Wheels 28 | 28 . . Hover . | . . . Flight 14 | . 14 . Fastest Speed 50 | 50 120 150 Average Speed 125 | 73 124 150 Slowest Speed 190 | 100 190 150 Overloaded Moves . | . . . Propulsion Burnouts . | . . . Robots Hopped . | . . . Cave-ins Triggered . | . . . Exploration Rate (%) 26 | 4 46 30 Regions Visited 2 Branch Regions 1 Pre-discovered Areas . | . . . Known Exits Taken . | . . . Unknown Exits Taken 2 | 1 1 . Scrap Searched . | . . . Spaces Dug . | . . . Terrain Destroyed 67 | . 67 . Melee . | . . . Projectile . | . . . AOE 67 | . 67 . Terrain Rammed . | . . . Walls Destroyed . | . . . Machines Disabled . | . . . Actions | -11 -10 -10 --------- Run | Yrd Mat Min Total 665 | 57 475 133 Wait . | . . . Move 554 | 48 383 123 Hop . | . . . Pick Up 18 | 7 9 2 Fast Attach 4 | . 4 . Attach 10 | 2 7 1 Detach . | . . . Swap 5 | . 5 . Drop 7 | . 5 2 Fire 65 | . 60 5 Melee . | . . . Ram . | . . . Kick 2 | . 2 . Crush . | . . . Escape Stasis . | . . . Rewire . | . . . Trap . | . . . Miscellaneous . | . . . Route ------- -11/Scrapyard -10/Materials -10/Mines History --------- Turn | Location | Event 4 | -11/Scrapyard | Discovered new exit (range 16) 46 | -11/Scrapyard | Entered Materials 303 | -10/Materials | Build established: Mutant 580 | -10/Materials | Core integrity fell below 50% 612 | -10/Materials | Lost 3 parts (1p1n1u) 651 | -10/Materials | Discovered new exit (range 16) 707 | -10/Materials | Entered Mines 740 | -10/Mines | YI-UF0 nonchalantly dropped a Grenade Launcher on the ground 807 | -10/Mines | Received a Rocket Launcher from a helpful Derelict 903 | -10/Mines | Core integrity fell below 20% 905 | -10/Mines | Destroyed self with Rocket Launcher Last Messages --------------- 00888_ YI-UF0: "KABOOM!" 00888_ YI-UF0: "BOOM!" 00888_ U-05 Engineer lays Concrete. 00889_ YI-UF0: "Whaaaaaaaa!" 00892_ The unstable cave ceiling collapses. 00892_ Dropped Flight Unit. 00892_ K-01 Serf collects debris. 00892_ Acquired Rocket Launcher. 00892_ YI-UF0: "WHAAM!" 00892_ K-01 Serf destroyed. 00895_ The unstable cave ceiling collapses. 00896_ Assault Rifle destroyed. 00898_ The unstable cave ceiling collapses. 00898_ Weapon Shielding destroyed. 00900_ YI-UF0 mumbles something. 00902_ Lgt. Ion Engine destroyed. 00902_ Destroyed Lgt. Ion Engine. 00902_ Lgt. Assault Rifle destroyed. 00902_ Destroyed Lgt. Assault Rifle. 00904_ The unstable cave ceiling collapses. Map ----- +----------------------------------------------------+ | | | | | | | | | | | | | | | | | | | | | | | | | | | ??????????????????????????????????????????????? | | ???????##?????????????####????????????????????? | | ?????### #####?????### ##???????????????????? | | ?????# ##??## ##??????????????????? | | ??????? #### #??????????????????? | | ??????????# ##?????????????????? | | ???????????# ##????????????????? | | ?????????????# ##???????????????? | | ???????????#### ##??????????????? | | ??????????? ?## ##?????????????? | | ???????????# ?# ##????????????? | | ???????????# ?# g # ????????? | | ???????????# ?# @ # ????????? | | ???????????# #### [=????????? | | ???????????# # ????????? | | ???????####?# * = #????????? | | ??????## ## ### ?????????? | | ??????# # ####??# #?????????? | | ??????# #### #??????? # #??????????? | | ??????# ##?##???????? # ###??????????? | | ?????## ##?????????? #??????????????? | | ????## ##?????????? ??????????????? | | ????# ##????????? ?????????????? | | ????# #??????????????????????????? | | ????#### #??????????????????????????? | | ???????##### ##??????????????????????????? | | ??????????## ##???????????????????????????? | | ?????????## ##????##?????????????????????? | | ?????????# ##??# ##????#???????????????? | | ?????????# ### ### #???????????????? | | ?????????## #???????????????? | | ??????????### # ###??????????????????? | | ????????????# ### ##????????????????????? | | ????????????# #### #?????????????????????? | | ????????????# ### #?????????????????????? | | ????????????#### #?## #????????????????????? | | ???????????????# #??# #???????????????????? | +----------------------------------------------------+ Best States ------------- Heat Dissipation 25 Energy Generation 10 Energy Capacity 250 Matter Stores 290 Matter Capacity 300 Sight Range 16 Terrain Scan Range 14 Terrain Scan Density 10 Resistance: KI 20 Resistance: TH 20 Resistance: EX 20 Resistance: EM 20 Resistance: I 20 Resistance: S 20 Resistance: P 20 Weapon Shielding 33 Evasion (%) 55 Offensive Hacking 10 Item Schematics ----------------- None Robot Schematics ------------------ None Fabricated ------------ Nothing Alien Tech Used ----------------- None Achievements -------------- None Challenges ------------ None Game ------ Seed RemoteWeldingPick Manual? 0 Play Time 00:10:43 Cumulative 5.5 hours Start 2024.03.26 @ 22:47:17 End 2024.03.26 @ 22:57:48 Sessions 1 Manual Loads 0 Difficulty Adventurer Special Mode None Game No. 6 Rogue 0 Adventurer 6 Explorer 0 Win Type - Total 0 Types 0/0/0/0/0/0/0/0/0 Lore% 2 Gallery% 5 Achievement% 4 Wizard Run 0 Options --------- Layout 1 ASCII 0 Keyboard 0 Movement Mouse Keybinds 0 Fullscreen 2 Font 24/Smallcaps Map View 50x35 Zoom Use 0% Tactical HUD 1 Map Filters NONE Filters NONE Steam 1 RUN: 7ecea371-4083-4bbe-bdb3-6ba93da8563f